bitfinex/quotes_SOLUSD_20251214
["timestamp","ask_amount","ask_price","bid_price","bid_amount"]
[1765715262353,13.36929249,131.53,131.49,8.29493828]
[1765715262780,0.67,131.52,131.49,8.29493828]
[1765715265779,8.27348394,131.52,131.48,15.90549377]
[1765715266244,0.67,131.51,131.48,16.59549377]
[1765715267776,5.09693194,131.53,131.49,0.69]
[1765715268080,0.67,131.53,131.49,0.69]
[1765715269079,0.67,131.53,131.49,8.29481549]
[1765715269253,8.27287819,131.53,131.49,8.29481549]
[1765715269452,8.27287819,131.53,131.49,7.60481549]
[1765715269652,8.27287819,131.53,131.5,0.69]
[1765715273257,13.37182625,131.53,131.5,0.69]
[1765715274281,8.27287819,131.53,131.5,0.69]
[1765715274490,104.6,131.54,131.5,27.30596468]
[1765715274973,0.67,131.53,131.49,8.29496874]
[1765715275184,8.27284256,131.53,131.49,8.29496874]
[1765715275362,8.27284256,131.53,131.49,7.60496874]
[1765715275559,8.27284256,131.53,131.5,0.69]
[1765715276584,0.67,131.53,131.5,0.69]
[1765715276884,104.6,131.54,131.5,0.69]
[1765715277252,105.31,131.54,131.51,7.60398448]
[1765715277661,105.31,131.54,131.51,8.26398448]
[1765715278499,104.6,131.54,131.52,0.66]
[1765715278792,16.6315946,131.56,131.52,0.66]
[1765715278972,5.81225795,131.55,131.52,0.66]
[1765715279594,5.81225795,131.55,131.53,7.60282825]
[1765715280489,5.81225795,131.55,131.52,8.263183]
[1765715280694,0.71,131.54,131.51,16.56374374]
[1765715281891,0.71,131.54,131.51,8.3]
[1765715281892,8.31226565,131.54,131.51,8.3]
[1765715282193,13.4145236,131.54,131.51,8.3]
[1765715282395,5.81644784,131.53,131.5,7.60432582]
[1765715282596,0.71,131.53,131.5,7.60432582]
[1765715282779,0.71,131.53,131.5,8.26432582]
[1765715283180,0.71,131.53,131.49,27.31238547]
[1765715283181,118.01930619,131.53,131.49,16.56494112]
[1765715283378,112.91285835,131.53,131.49,16.56494112]
[1765715283584,0.71,131.52,131.49,16.56494112]
[1765715284698,0.71,131.52,131.49,15.90494112]
[1765715285001,8.31350182,131.52,131.47,0.2]
[1765715285207,21.74085465,131.52,131.47,0.2]
[1765715285387,5.81735283,131.51,131.47,0.2]
[1765715285891,0.71,131.5,131.47,0.2]
[1765715286497,0.71,131.5,131.47,7.80629126]
[1765715291308,110.41735283,131.5,131.47,7.80629126]
[1765715291509,105.31,131.5,131.47,7.80629126]
[1765715291698,0.71,131.49,131.47,7.80629126]
[1765715292616,104.6,131.5,131.48,0.66]
[1765715292809,105.31,131.5,131.47,8.46629126]
[1765715293692,104.6,131.5,131.47,7.80629126]
[1765715293895,0.71,131.54,131.48,0.66]
[1765715294202,5.82589374,131.53,131.49,8.3]
[1765715294514,5.11589374,131.52,131.49,8.3]
[1765715294685,5.11589374,131.51,131.47,0.2]
[1765715294890,5.82589374,131.5,131.47,0.2]
[1765715295084,5.11589374,131.49,131.47,0.2]
[1765715295280,0.71,131.5,131.47,0.86]
[1765715295484,5.1202805,131.49,131.47,0.86]
[1765715295717,0.71,131.5,131.47,0.86]
[1765715296013,5.12023119,131.49,131.47,0.86]
[1765715296243,0.71,131.5,131.47,0.86]
[1765715296385,5.11998595,131.49,131.47,0.86]
[1765715296688,0.71,131.5,131.47,0.86]
[1765715296888,5.12140006,131.49,131.47,0.86]
[1765715297112,0.71,131.5,131.47,8.46620736]
[1765715297413,5.12110576,131.49,131.47,8.46620736]
[1765715297615,0.71,131.5,131.47,8.46620736]
[1765715297818,5.12168764,131.49,131.47,8.46620736]
[1765715298116,0.71,131.5,131.47,8.46620736]
[1765715299291,5.12148015,131.49,131.47,8.46620736]
[1765715299487,118.58624916,131.54,131.48,0.66]
[1765715299710,118.58624916,131.54,131.49,8.3]
[1765715299711,5.120302,131.53,131.49,8.3]
[1765715299904,5.120302,131.52,131.49,8.3]
[1765715300103,0.71,131.53,131.5,0.66]
[1765715300305,5.12029517,131.52,131.5,0.66]
[1765715300614,0.71,131.53,131.5,0.66]
[1765715300815,5.12024621,131.52,131.5,0.66]
[1765715301000,0.71,131.53,131.49,8.96]
[1765715301202,5.12035356,131.52,131.49,8.96]
[1765715301404,0.71,131.53,131.49,8.96]
[1765715301611,5.12024946,131.52,131.5,8.26456273]
[1765715301807,0.71,131.53,131.5,8.26456273]
[1765715301998,5.12024859,131.52,131.5,8.26456273]
[1765715302199,0.71,131.53,131.5,8.26456273]
[1765715302407,5.1202446,131.52,131.5,8.26456273]
[1765715302725,0.71,131.53,131.5,8.26456273]
[1765715302923,5.12013391,131.52,131.5,8.26456273]
[1765715303124,0.71,131.53,131.5,8.26456273]
[1765715303297,5.12013492,131.52,131.5,8.26456273]
[1765715303494,0.71,131.53,131.5,8.26456273]
[1765715303734,5.12000552,131.52,131.5,8.26456273]
[1765715303924,0.71,131.53,131.5,8.26456273]
[1765715304107,5.12000552,131.52,131.5,8.26456273]
[1765715304300,0.71,131.53,131.5,8.26456273]
[1765715304502,5.11986829,131.52,131.5,8.26456273]
[1765715304710,0.71,131.53,131.5,8.26456273]
[1765715304904,5.11986742,131.52,131.5,8.26456273]
[1765715305111,0.71,131.53,131.5,8.26456273]
[1765715305313,5.11988391,131.52,131.5,8.26456273]
[1765715305512,0.71,131.53,131.5,8.26456273]
[1765715305720,5.11972298,131.52,131.5,8.26456273]
[1765715306022,0.71,131.53,131.5,8.26456273]
[1765715306237,5.11977228,131.52,131.5,8.26456273]
[1765715306522,0.71,131.53,131.5,7.60456273]
[1765715306727,5.11980036,131.52,131.5,7.60456273]
[1765715307030,0.71,131.53,131.5,7.60456273]
[1765715307229,5.11979984,131.52,131.5,7.60456273]
[1765715307430,0.71,131.53,131.5,7.60456273]
[1765715307631,5.1197313,131.52,131.5,7.60456273]
[1765715307808,0.71,131.53,131.5,7.60456273]
[1765715308008,5.11973217,131.52,131.5,7.60456273]
[1765715308203,0.71,131.53,131.5,7.60456273]
[1765715308524,5.11983363,131.52,131.5,8.29456273]
[1765715308708,0.65,131.53,131.5,8.29456273]
[1765715309031,5.11956135,131.52,131.5,8.29456273]
[1765715309232,0.65,131.53,131.5,8.29456273]
[1765715309408,5.11946137,131.52,131.5,8.29456273]
[1765715309607,0.65,131.53,131.5,8.29456273]
[1765715309808,5.11956731,131.52,131.5,8.29456273]
[1765715310128,0.65,131.53,131.5,8.29456273]
[1765715310327,5.11945789,131.52,131.5,8.29456273]
[1765715310628,0.65,131.53,131.5,8.29456273]
[1765715310823,5.11929582,131.52,131.5,8.29456273]
[1765715311026,0.65,131.53,131.5,8.29456273]
[1765715311202,5.11929666,131.52,131.5,8.29456273]
[1765715311522,8.25284577,131.53,131.49,16.59492163]
[1765715311712,5.76934655,131.52,131.49,16.59492163]
[1765715311914,0.65,131.52,131.49,16.59492163]
[1765715312234,0.65,131.53,131.5,0.69]
[1765715312416,5.11914439,131.52,131.5,0.69]
[1765715312618,0.65,131.53,131.5,0.69]
[1765715312817,5.11909425,131.52,131.5,0.69]
[1765715313014,0.65,131.53,131.5,0.69]
[1765715313230,5.11909425,131.52,131.5,8.29441938]
[1765715313400,0.65,131.53,131.5,8.29441938]
[1765715313607,5.11900423,131.52,131.5,8.29441938]
[1765715313807,0.65,131.53,131.5,8.29441938]
[1765715314031,5.1190051,131.52,131.5,8.29441938]
[1765715314214,0.65,131.53,131.5,8.29441938]
[1765715314415,5.11908065,131.52,131.5,8.29441938]
[1765715314615,0.65,131.53,131.5,8.29441938]
[1765715314831,5.11890741,131.52,131.5,8.29441938]
[1765715315032,0.65,131.53,131.5,8.29441938]
[1765715315235,5.11890828,131.52,131.5,8.29441938]
[1765715315436,0.65,131.53,131.5,8.29441938]
[1765715315642,5.11893004,131.52,131.5,8.29441938]
[1765715315844,0.65,131.53,131.5,8.29441938]
[1765715316145,5.11882322,131.52,131.5,8.29441938]
[1765715316348,0.65,131.53,131.5,8.29441938]
[1765715316518,5.11874139,131.52,131.5,8.29441938]
[1765715316720,0.65,131.53,131.5,8.29441938]
[1765715316929,5.11874139,131.52,131.5,8.29441938]
[1765715317137,0.65,131.53,131.5,8.29441938]
[1765715317439,5.11883078,131.52,131.5,8.29441938]
[1765715317742,0.65,131.53,131.5,8.29441938]
[1765715317924,5.11876854,131.52,131.5,8.29441938]
[1765715318128,0.65,131.53,131.5,8.29441938]
[1765715318347,5.118792,131.52,131.5,8.29441938]
[1765715318521,0.65,131.53,131.5,8.29441938]
[1765715318721,5.11861645,131.52,131.5,8.29441938]
[1765715319047,8.25283254,131.53,131.5,8.29441938]
[1765715319246,5.11872153,131.52,131.5,8.29441938]
[1765715319545,0.65,131.53,131.5,8.29441938]
[1765715319720,5.11857751,131.52,131.5,8.29441938]
[1765715320043,0.65,131.53,131.5,8.29441938]
[1765715320218,5.11857664,131.52,131.51,0.69]
[1765715321639,5.11857664,131.52,131.5,8.29441938]
[1765715321831,105.25,131.54,131.5,8.29441938]
[1765715322030,5.76850671,131.53,131.5,8.29441938]
[1765715322232,5.11850671,131.52,131.5,8.29441938]
[1765715322526,0.65,131.53,131.5,8.29441938]
[1765715322845,5.11847323,131.52,131.5,8.29441938]
[1765715323043,0.65,131.53,131.5,8.29441938]
[1765715323351,5.11868512,131.52,131.5,8.29441938]
[1765715323529,0.65,131.53,131.5,7.60441938]
[1765715323731,5.11882524,131.52,131.51,0.69]
[1765715324140,5.11882524,131.52,131.49,16.59490731]
[1765715324317,0.65,131.52,131.49,16.59490731]
[1765715326144,112.20245155,131.54,131.49,15.90490731]
[1765715326349,0.65,131.52,131.49,16.59490731]
[1765715326655,5.11984511,131.51,131.49,7.60490731]
[1765715326948,0.65,131.52,131.49,7.60490731]
[1765715327242,5.11979549,131.51,131.49,7.60490731]
[1765715327451,104.6,131.51,131.48,16.59565774]
[1765715327749,105.25,131.51,131.48,16.59565774]
[1765715327952,0.65,131.5,131.48,15.90565774]
[1765715328135,0.65,131.5,131.48,16.59565774]
[1765715328538,105.25,131.51,131.48,16.59565774]
[1765715330425,104.6,131.51,131.49,0.69]
[1765715330634,105.25,131.51,131.49,0.69]
[1765715331061,105.25,131.51,131.48,16.59565774]
[1765715331457,104.6,131.51,131.49,0.69]
[1765715332946,105.25,131.51,131.48,34.91995649]
[1765715333149,105.25,131.51,131.48,35.60995649]
[1765715335057,104.6,131.51,131.48,35.60995649]
[1765715335258,0.65,131.5,131.48,15.90565774]
[1765715341769,0.65,131.5,131.47,7.80618695]
[1765715341967,5.12495957,131.49,131.47,7.80618695]
[1765715342174,0.65,131.5,131.47,7.80618695]
[1765715342340,5.12526815,131.49,131.47,7.80618695]
[1765715342640,0.65,131.5,131.47,8.50618695]
[1765715342969,104.6,131.51,131.48,21.3528107]
[1765715343163,104.6,131.51,131.48,29.6528107]
[1765715343341,104.6,131.51,131.49,0.7]
[1765715343742,105.32,131.51,131.48,29.6528107]
[1765715343942,5.12564405,131.5,131.48,29.6528107]
[1765715344157,105.32,131.51,131.48,29.6528107]
[1765715344359,5.12650494,131.5,131.48,29.6528107]
[1765715344561,105.32,131.51,131.48,29.6528107]
[1765715344867,5.84639882,131.5,131.47,0.2]
[1765715345074,5.12639882,131.49,131.47,0.2]
[1765715345372,5.12639882,131.48,131.47,0.2]
[1765715345767,5.84639882,131.48,131.47,0.2]
[1765715346875,5.12639882,131.48,131.47,0.2]
[1765715347061,0.72,131.5,131.47,8.50629801]
[1765715347261,5.12464514,131.49,131.47,8.50629801]
[1765715347461,0.72,131.5,131.47,8.50629801]
[1765715347662,5.12397455,131.49,131.47,7.80629801]
[1765715347864,5.12397455,131.48,131.47,7.80629801]
[1765715348260,0.72,131.49,131.47,7.80629801]
[1765715351082,5.12219926,131.48,131.47,0.2]
[1765715352159,5.84219926,131.48,131.47,0.2]
[1765715356306,0.72,131.48,131.47,0.2]
[1765715356490,5.84219926,131.48,131.47,0.2]
[1765715356667,5.12219926,131.48,131.47,0.2]
[1765715356872,0.72,131.49,131.47,0.2]
[1765715357493,5.11849385,131.48,131.47,0.2]
[1765715358195,5.83849385,131.48,131.47,0.2]
[1765715358998,0.72,131.49,131.47,0.2]
[1765715360174,7.60457943,131.5,131.47,7.80627841]
[1765715360372,5.83804408,131.49,131.47,8.50627841]
[1765715360677,0.72,131.49,131.47,8.50627841]
[1765715360891,0.72,131.49,131.47,0.9]
[1765715361393,0.72,131.49,131.47,0.2]
[1765715364199,5.11848577,131.48,131.47,0.2]
[1765715364696,5.83848577,131.48,131.47,0.2]
[1765715365792,13.44420527,131.48,131.47,0.2]
[1765715365989,5.83848577,131.48,131.47,0.2]
[1765715369883,13.44420527,131.48,131.47,0.2]
[1765715370515,22.53847333,131.48,131.47,0.2]
[1765715377787,5.83848577,131.48,131.47,0.2]
[1765715381090,13.44420527,131.48,131.47,0.2]
[1765715385304,5.11848577,131.48,131.47,0.89]
[1765715385617,13.44420527,131.48,131.47,0.2]
[1765715391821,13.4467555,131.48,131.47,0.2]
[1765715394809,19.8480505,131.48,131.47,0.2]
[1765715395422,13.4467555,131.48,131.47,0.2]
[1765715399732,12.7267555,131.48,131.47,0.2]
[1765715400031,13.4267555,131.48,131.47,0.2]
[1765715400225,12.7267555,131.48,131.47,0.92]
[1765715400627,12.7267555,131.48,131.47,0.2]
[1765715402323,13.4267555,131.48,131.47,0.2]
[1765715403235,12.7267555,131.48,131.47,0.2]
[1765715406355,5.121036,131.48,131.47,0.2]
[1765715408342,12.7267555,131.48,131.47,0.2]
[1765715409444,13.4267555,131.48,131.47,0.2]
[1765715409932,12.7267555,131.48,131.47,0.2]
[1765715410331,13.4267555,131.48,131.47,0.2]
[1765715410537,12.7267555,131.48,131.47,0.2]
[1765715410933,5.121036,131.48,131.47,8.52629801]
[1765715412766,5.121036,131.48,131.47,0.92]
[1765715413548,5.121036,131.48,131.47,8.52629801]
[1765715414162,23.02484316,131.52,131.47,8.52629801]
[1765715414467,5.82391506,131.51,131.48,0.72]
[1765715414674,5.12391506,131.5,131.48,0.72]
[1765715414965,5.12391506,131.49,131.48,0.72]
[1765715415167,5.12391506,131.49,131.48,8.3257195]
[1765715418368,5.12391506,131.51,131.48,27.34001825]
[1765715418569,5.12391506,131.5,131.49,0.72]
[1765715418743,5.12391506,131.5,131.49,9.02]
[1765715420169,5.12391506,131.52,131.49,9.02]
[1765715420375,5.12391506,131.51,131.5,0.72]
[1765715421354,5.12391506,131.51,131.5,8.32456273]
[1765715421945,5.12391506,131.52,131.5,8.32456273]
[1765715422147,104.6,131.53,131.51,0.72]
[1765715422346,5.11491887,131.52,131.51,0.72]
[1765715423887,5.11491887,131.52,131.5,8.32456273]
[1765715424055,5.11491887,131.51,131.5,8.32456273]
[1765715424371,5.11491887,131.52,131.5,8.32456273]
[1765715424544,5.11491887,131.51,131.5,8.32456273]
[1765715424871,5.11491887,131.52,131.5,8.32456273]
[1765715425039,5.11491887,131.51,131.5,8.32456273]
[1765715425240,5.11491887,131.52,131.5,8.32456273]
[1765715425440,5.11491887,131.51,131.5,8.32456273]
[1765715425667,5.11491887,131.52,131.51,0.7]
[1765715426274,5.11491887,131.52,131.51,8.30398448]
[1765715427271,5.11491887,131.52,131.5,8.27438805]
[1765715427787,5.11491887,131.52,131.51,0.67]
[1765715427957,5.11491887,131.52,131.49,15.90498201]
[1765715428163,5.11491887,131.52,131.5,0.67]
[1765715429972,105.25,131.53,131.5,0.67]
[1765715430172,5.11006147,131.52,131.5,0.67]
[1765715430487,5.76006147,131.52,131.5,0.67]
[1765715430857,5.11006147,131.52,131.5,0.67]
[1765715431872,5.11006147,131.52,131.5,8.27451352]
[1765715434365,5.76006147,131.52,131.5,8.27451352]
[1765715434566,5.11006147,131.52,131.5,8.27451352]
[1765715436376,105.25,131.53,131.5,8.27451352]
[1765715436574,104.6,131.53,131.5,8.27451352]
[1765715436769,0.65,131.52,131.5,8.27451352]
[1765715437367,104.6,131.53,131.5,8.27451352]
[1765715437893,0.65,131.52,131.5,8.27451352]
[1765715441297,105.25,131.53,131.5,8.27451352]
[1765715441592,104.6,131.53,131.51,0.67]
[1765715442089,105.25,131.53,131.51,0.67]
[1765715443762,105.25,131.53,131.51,8.2739608]
[1765715443963,105.25,131.53,131.51,7.6039608]
[1765715444167,104.6,131.53,131.51,7.6039608]
[1765715444394,0.65,131.52,131.51,7.6039608]
[1765715444972,105.25,131.53,131.51,7.6039608]
[1765715446386,105.25,131.53,131.51,0.67]
[1765715447201,104.6,131.53,131.51,0.67]
[1765715447698,105.25,131.53,131.51,8.27384931]
[1765715448303,104.6,131.53,131.52,0.67]
[1765715449586,104.6,131.53,131.52,8.27340632]
[1765715450276,0.65,131.56,131.52,8.27340632]
[1765715450498,5.11149819,131.55,131.53,0.67]
[1765715450799,0.65,131.56,131.53,0.67]
[1765715450999,5.76149819,131.55,131.53,0.67]
[1765715451186,0.65,131.55,131.53,0.67]
[1765715451386,0.65,131.55,131.53,8.2723142]
[1765715452186,0.65,131.55,131.53,7.6023142]
[1765715452390,0.65,131.55,131.53,8.2723142]
[1765715452702,0.65,131.55,131.53,7.6023142]
[1765715453003,5.1122906,131.54,131.52,8.27320616]
[1765715454290,0.65,131.55,131.52,8.27320616]
[1765715454493,5.11420527,131.54,131.52,8.27320616]
[1765715454683,0.65,131.55,131.52,8.27320616]
[1765715454883,5.11420527,131.54,131.52,8.27320616]
[1765715455090,0.65,131.55,131.52,8.27320616]
[1765715455311,5.1155488,131.54,131.52,8.27320616]
[1765715455508,0.65,131.55,131.52,8.27320616]
[1765715455693,5.11554967,131.54,131.52,8.27320616]
[1765715455888,0.65,131.55,131.52,8.27320616]
[1765715456208,5.1155488,131.54,131.52,8.27320616]
[1765715456379,0.65,131.55,131.52,8.27320616]
[1765715456580,5.11540795,131.54,131.52,8.27320616]
[1765715456775,0.65,131.55,131.52,8.27320616]
[1765715456980,5.11540708,131.54,131.52,8.27320616]
[1765715457206,0.65,131.55,131.52,8.27320616]
[1765715457409,5.11554618,131.54,131.52,8.27320616]
[1765715457593,0.65,131.55,131.52,8.27320616]
[1765715457794,5.11554531,131.54,131.52,8.27320616]
[1765715457990,0.65,131.55,131.52,8.27320616]
[1765715458201,5.11554531,131.54,131.52,8.27320616]
[1765715458397,0.65,131.55,131.52,8.27320616]
[1765715458696,5.11590104,131.54,131.52,8.27320616]
[1765715458887,0.65,131.55,131.52,8.27320616]
[1765715459087,5.11590104,131.54,131.52,8.27320616]
[1765715459290,0.65,131.55,131.52,8.27320616]
[1765715459488,5.11602544,131.54,131.52,8.27320616]
[1765715459712,0.65,131.55,131.52,8.27320616]
[1765715460014,5.11602544,131.54,131.52,8.29320616]
[1765715460195,0.65,131.55,131.53,0.69]
[1765715460508,5.11635272,131.54,131.52,8.29320616]
[1765715460705,0.65,131.55,131.52,8.29320616]
[1765715460892,5.11635359,131.54,131.52,8.29320616]
[1765715461097,0.65,131.55,131.52,8.29320616]
[1765715461299,5.11691055,131.54,131.52,8.29320616]
[1765715461490,0.65,131.55,131.52,8.29320616]
[1765715461691,5.11690968,131.54,131.52,8.29320616]
[1765715461893,0.65,131.55,131.52,8.29320616]
[1765715462093,5.11690968,131.54,131.52,8.29320616]
[1765715462308,0.65,131.55,131.52,8.29320616]
[1765715462612,5.11742073,131.54,131.52,8.29320616]
[1765715462816,0.65,131.55,131.52,8.29320616]
[1765715463116,5.11742073,131.54,131.52,8.29320616]
[1765715463317,0.65,131.55,131.52,8.29320616]
[1765715463491,5.11782852,131.54,131.52,8.29320616]
[1765715463693,0.65,131.55,131.52,8.29320616]
[1765715463905,5.11782939,131.54,131.52,8.29320616]
[1765715464101,0.65,131.55,131.52,8.29320616]
[1765715464293,5.11801912,131.54,131.52,8.29320616]
[1765715464487,105.3,131.56,131.53,0.69]
[1765715464696,5.81781405,131.55,131.53,0.69]
[1765715464906,0.7,131.55,131.53,0.69]
[1765715465105,0.7,131.55,131.52,8.29320616]
[1765715465406,5.11789373,131.54,131.52,8.29320616]
[1765715465584,0.7,131.55,131.52,8.29320616]
[1765715465806,5.1178946,131.54,131.52,8.29320616]
[1765715466105,0.7,131.55,131.52,8.29320616]
[1765715466305,5.11787521,131.54,131.52,8.29320616]
[1765715466518,0.7,131.55,131.52,8.29320616]
[1765715466718,5.11787521,131.54,131.52,8.29320616]
[1765715467021,0.7,131.55,131.52,8.29320616]
[1765715467817,5.11774462,131.54,131.52,8.29320616]
[1765715468027,0.7,131.55,131.53,0.69]
[1765715468704,0.7,131.55,131.52,8.29320616]
[1765715469410,104.6,131.56,131.53,0.69]
[1765715469608,5.81756974,131.55,131.53,0.69]
[1765715469927,0.7,131.55,131.53,0.69]
[1765715470413,0.7,131.55,131.52,7.60320677]
[1765715470788,0.7,131.55,131.52,8.29320677]
[1765715471122,0.7,131.55,131.53,7.60273764]
[1765715482227,5.11983686,131.54,131.53,7.60273764]
[1765715485015,0.7,131.55,131.53,7.60273764]
[1765715485427,5.12131063,131.54,131.53,7.60273764]
[1765715489340,104.6,131.56,131.53,0.68]
[1765715489527,5.12363882,131.55,131.53,0.68]
[1765715489710,0.66,131.55,131.53,0.68]
[1765715491133,104.6,131.56,131.54,7.60225026]
[1765715491470,5.12527905,131.55,131.54,7.60225026]
[1765715491737,5.12527905,131.55,131.54,8.28225026]
[1765715491901,5.12527905,131.55,131.54,16.58225026]
[1765715492107,105.26,131.58,131.54,16.58225026]
[1765715492305,5.12502007,131.57,131.55,0.68]
[1765715492542,5.12502007,131.56,131.55,0.68]
[1765715493149,5.12502007,131.56,131.55,8.28167236]
[1765715498943,0.66,131.58,131.55,27.28585327]
[1765715499151,5.12048409,131.57,131.56,0.68]
[1765715499652,104.6,131.56,131.52,19.00760329]
[1765715499844,5.12048409,131.55,131.5,24.22456273]
[1765715500151,5.12048409,131.55,131.51,0.68]
[1765715500152,5.12080095,131.54,131.51,0.68]
[1765715500360,0.66,131.54,131.51,0.68]
[1765715500562,0.66,131.53,131.51,0.68]
[1765715500920,0.66,131.53,131.51,8.28373039]
[1765715501120,0.66,131.53,131.51,7.60373039]
[1765715501520,0.66,131.53,131.5,15.90436306]
[1765715502050,0.66,131.53,131.5,7.60436306]
[1765715502256,0.66,131.53,131.5,8.28436306]
[1765715505370,0.66,131.53,131.5,7.60436306]
[1765715505539,0.66,131.53,131.5,8.28436306]
[1765715506080,104.6,131.55,131.5,7.60436306]
[1765715506393,104.6,131.55,131.51,0.68]
[1765715506394,5.77980258,131.54,131.51,0.68]
[1765715506671,0.66,131.54,131.51,0.68]
[1765715506870,0.66,131.53,131.51,0.68]
[1765715507251,0.66,131.53,131.5,27.2957699]
[1765715507452,0.66,131.53,131.52,7.60340632]
[1765715507643,5.7801685,131.53,131.5,7.60433564]
[1765715507843,0.66,131.53,131.5,7.60433564]
[1765715508043,0.66,131.52,131.49,15.90496787]
[1765715508443,0.66,131.52,131.49,16.58496787]
[1765715514780,104.6,131.53,131.5,0.68]
[1765715515778,104.6,131.53,131.5,23.51191902]
[1765715515981,104.6,131.53,131.51,0.71]
[1765715516179,104.6,131.53,131.52,7.60340632]
[1765715516878,0.66,131.54,131.52,7.60340632]
[1765715520801,5.11799914,131.55,131.53,0.71]
[1765715520952,0.69,131.55,131.53,0.71]
[1765715521720,104.6,131.57,131.53,0.71]
[1765715521721,5.11759369,131.56,131.53,0.71]
[1765715521987,87.29187219,131.63,131.55,13.0470912]
[1765715521988,0.69,131.6,131.55,13.0470912]
[1765715522154,0.69,131.6,131.56,21.3470912]
[1765715522558,0.69,131.6,131.57,0.71]
[1765715522767,0.69,131.6,131.58,7.5999392]
[1765715523957,5.11014292,131.61,131.58,15.8999392]
[1765715524256,0.69,131.61,131.59,0.71]
[1765715524986,5.10735713,131.62,131.58,34.8997872]
[1765715525279,0.69,131.63,131.59,0.71]
[1765715525482,5.79735713,131.63,131.6,8.3]
[1765715525654,0.69,131.63,131.6,8.3]
[1765715526056,5.79735713,131.64,131.61,8.30820682]
[1765715526255,0.69,131.63,131.61,8.30820682]
[1765715526673,0.69,131.63,131.61,7.59820682]
[1765715527588,0.1,131.66,131.64,13.0470912]
[1765715527891,0.1,131.66,131.65,13.7570912]
[1765715528186,0.1,131.66,131.65,24.39377393]
[1765715528578,0.1,131.66,131.65,23.68377393]
[1765715529076,0.1,131.66,131.65,24.39377393]
[1765715530859,0.1,131.66,131.65,23.68377393]
[1765715531065,0.79,131.66,131.64,15.89628421]
[1765715531271,0.79,131.66,131.61,19.70532956]
[1765715531469,0.79,131.66,131.64,3.04124691]
[1765715531689,0.79,131.66,131.62,8.3]
[1765715531869,0.79,131.66,131.62,15.89749352]
[1765715532791,8.3854665,131.66,131.62,15.89749352]
[1765715533164,0.69,131.65,131.62,15.89749352]
[1765715533484,0.69,131.65,131.62,7.59749352]
[1765715536972,0.69,131.65,131.62,8.30749352]
[1765715537776,104.7,131.66,131.63,0.71]
[1765715537990,104.7,131.66,131.63,8.30674988]
[1765715538285,0.1,131.66,131.65,13.0470912]
[1765715538491,0.1,131.66,131.65,13.7570912]
[1765715539011,0.1,131.66,131.65,16.79787572]
[1765715541089,0.1,131.68,131.67,21.85703612]
[1765715541290,0.1,131.69,131.68,9.09426806]
[1765715541514,0.1,131.69,131.68,9.80426806]
[1765715541696,0.1,131.69,131.68,13.7570912]
[1765715541900,0.1,131.69,131.68,21.34672402]
[1765715542284,0.1,131.69,131.68,20.63672402]
[1765715542503,0.1,131.69,131.68,28.93672402]
[1765715542708,0.79,131.69,131.68,28.93672402]
[1765715543209,0.79,131.69,131.68,21.3470912]
[1765715543678,0.79,131.69,131.67,7.59452774]
[1765715547519,0.79,131.69,131.66,15.8924479]
[1765715547520,0.79,131.69,131.66,23.48773296]
[1765715547718,0.79,131.69,131.66,15.89528506]
[1765715548130,0.79,131.69,131.66,7.59528506]
[1765715550200,112.98376226,131.69,131.65,18.98974553]
[1765715550420,112.98376226,131.69,131.64,15.89636308]
[1765715550598,105.3,131.68,131.63,7.59697568]
[1765715551016,0.7,131.67,131.62,15.89741282]
[1765715551432,0.98432314,131.67,131.59,19.6976148]
[1765715551727,7.59532128,131.66,131.61,7.59813502]
[1765715551895,8.29532128,131.66,131.61,7.59813502]
[1765715552094,0.7,131.65,131.61,7.59813502]
[1765715552595,104.6,131.68,131.62,9.0]